Workbook

Sheet 封面
B7: 西安市阎良区2018年财政预算执行 和2019年财政预算（草案）
B22: 西安市阎良区财政局
B23: 2019年1月

Sheet 目录
A1: 目 录
A2: 一、西安市阎良区2018年财政收支执行情况表
A3: 1、 西安市阎良区2018年一般公共预算收入表………………………………………………………………………………………………………附表一
A4: 2、 西安市阎良区2018年一般公共预算支出表………………………………………………………………………………………………………附表二
A5: 3、 西安市阎良区2018年一般公共预算（基本）支出表……………………………………………………………………………………………附表三
A6: 4、 西安市阎良区2018年一般公共预算收支平衡表…………………………………………………………………………………………………附表四
A7: 5、 西安市阎良区2018年政府性基金预算收入表……………………………………………………………………………………………………附表五
A8: 6、 西安市阎良区2018年政府性基金预算支出表……………………………………………………………………………………………………附表六
A9: 7、 西安市阎良区2018年一般公共预算税收返还和转移支付表……………………………………………………………………………………附表七
A10: 8、 西安市阎良区2018年社会保险基金预算收入表…………………………………………………………………………………………………附表八
A11: 9、 西安市阎良区2018年社会保险基金预算支出表…………………………………………………………………………………………………附表九
A12: 10、西安市阎良区2018年国有资本经营收入表………………………………………………………………………………………………………附表十
A13: 11、西安市阎良区2018年国有资本经营支出表………………………………………………………………………………………………………附表十一
A14: 12、西安市阎良区2018年债务情况表…………………………………………………………………………………………………………………附表十二
A15: 二、西安市阎良区2019年财政收支预算表
A16: 13、 西安市阎良区2019年一般公共预算收入预算表……………………………………………………………………………………………附表十三
A17: 14、 西安市阎良区2019年一般公共预算（本级）支出预算表（按功能分类科目）…………………………………………………………附表十四
A18: 15、 西安市阎良区2019年一般公共预算（本级）支出预算表（按经济分类科目）…………………………………………………………附表十五
A19: 16、 西安市阎良区2019年一般公共预算（本级）基本支出表 …………………………………………………………………………………附表十六
A20: 17、 西安市阎良区2019年一般公共预算税收返还和转移支付情况表 …………………………………………………………………………附表十七
A21: 18、 西安市阎良区2019年一般公共预算收支平衡表 ……………………………………………………………………………………………附表十八
A22: 19、 西安市阎良区2019年政府性基金收入预算表 ………………………………………………………………………………………………附表十九
A23: 20、 西安市阎良区2019年政府性基金支出预算表 ………………………………………………………………………………………………附表二十
A24: 21、西安市阎良区2019年政府性基金转移支付情况表 …………………………………………………………………………………………附表二十一
A25: 22、西安市阎良区2019年社会保险基金收入预算表………………………………………………………………………………………………附表二十二
A26: 23、西安市阎良区2019年社会保险基金支出预算表………………………………………………………………………………………………附表二十三
A27: 24、西安市阎良区2019年国有资本经营收入预算表………………………………………………………………………………………………附表二十四
A28: 25、西安市阎良区2019年国有资本经营支出预算表………………………………………………………………………………………………附表二十五
A29: 26、西安市阎良区2019年国有资本经营预算转移支付情况表……………………………………………………………………………………附表二十六
A30: 27、西安市阎良区2019年政府一般债务情况表……………………………………………………………………………………………………附表二十七
A31: 28、西安市阎良区2019年政府专项债务情况表……………………………………………………………………………………………………附表二十八
A32: 29、西安市阎良区2019年三公经费预算表…………………………………………………………………………………………………………附表二十九

Sheet 2018一般收入执行
A1: 附表一
A2: 西安市阎良区2018年一般公共预算收入表
F3: 单位：万元
A4: 项 目 | B4: 2018年 | D4: 2017年决算数 | E4: 2018年执行数
B5: 调整预算数 | C5: 执行数 | E5: 占调整预算％ | F5: 与上年同比+－％
A6: 一、税收收入 | B6: =SUM(B7,B19:B20) -> 80,510 | C6: =C7+C19+C20 -> 84,935 | D6: 84,230 | E6: =C6/B6 -> 105.5% | F6: =C6/D6-1 -> 0.8%
A7: 工商税收 | B7: =SUM(B8:B18) -> 56,400 | C7: =SUM(C8:C18) -> 41,402 | D7: 40,468 | E7: =C7/B7 -> 73.4% | F7: =C7/D7-1 -> 2.3%
A8: 增值税 | B8: =20350+190 -> 20,540 | C8: 16,384 | D8: 19,166 | E8: 79.8% | F8: -14.5%
A9: 营业税 | C9: 44 | D9: 107 | F9: -58.9%
A10: 企业所得税 | B10: =3580+690 -> 4,270 | C10: 4,029 | D10: 3,754 | E10: 94.4% | F10: 7.3%
A11: 个人所得税 | B11: 8,820 | C11: 4,805 | D11: 4,895 | E11: 54.5% | F11: -1.8%
A12: 资源税 | B12: 50
A13: 城市维护建设税 | B13: 5,780 | C13: 3,137 | D13: 3,193 | E13: 54.3% | F13: -1.8%
A14: 房产税 | B14: 5,490 | C14: 3,719 | D14: 3,031 | E14: 67.7% | F14: 22.7%
A15: 印花税 | B15: 2,290 | C15: 2,648 | D15: 1,263 | E15: 115.6% | F15: 109.7%
A16: 城镇土地使用税 | B16: 4,090 | C16: 1,665 | D16: 2,259 | E16: 40.7% | F16: -26.3%
A17: 土地增值税 | B17: 2,100 | C17: 3,191 | D17: 1,159 | E17: 152.0% | F17: 175.3%
A18: 车船税 | B18: 2,970 | C18: 1,780 | D18: 1,641 | E18: 59.9% | F18: 8.5%
A19: 耕地占用税 | B19: =28930+950+150-19000 -> 11,030 | C19: 10,754 | D19: 41,122 | E19: 97.5% | F19: -73.8%
A20: 契税 | B20: =3000+10080 -> 13,080 | C20: 32,779 | D20: 2,640 | E20: 250.6% | F20: 1141.6%
A21: 二、非税收入 | B21: =SUM(B22,B28:B32) -> 15,580 | C21: =SUM(C22,C28:C32) -> 11,737 | D21: 34,709 | E21: 75.3% | F21: -66.2%
A22: 专项收入 | B22: =SUM(B23:B27) -> 9,360 | C22: 1,766 | D22: 26,672 | E22: 18.9% | F22: -93.4%
A23: 排污费收入
A24: 教育费附加及地方教育收入 | B24: 1,800 | C24: 1,763 | D24: 1,804 | E24: 97.9% | F24: -2.3%
A25: 教育资金收入 | B25: =13820-10040 -> 3,780 | D25: 24,868 | F25: -100.0%
A26: 农田水利建设资金收入 | B26: =13820-10040 -> 3,780
A27: 其他专项收入 | C27: 3
A28: 行政事业性收费收入 | B28: 4,220 | C28: 2,733 | D28: 4,589 | E28: 64.8% | F28: -40.4%
A29: 罚没收入 | B29: 1,000 | C29: 1,328 | D29: 1,884 | E29: 132.8% | F29: -29.5%
A30: 国有资本经营收入 | D30: 171 | F30: -100.0%
A31: 国有资源（资产）有偿使用收入 | B31: 1,000 | C31: 5,910 | D31: 1,190 | E31: 591.0% | F31: 396.6%
A32: 其他收入 | D32: 203 | F32: -100.0%
A33: 一般公共预算收入合计 | B33: =SUM(B6,B21) -> 96,090 | C33: =SUM(C6,C21) -> 96,672 | D33: 118,939 | E33: 100.6% | F33: -18.7%

Sheet 2018一般支出
A1: 附表二
A2: 西安市阎良区2018年一般公共预算支出表
F3: 单位：万元
A4: 项 目 | B4: 2018年 | D4: 2017年决算数 | E4: 2018年执行数
B5: 调整预算数 | C5: 执行数 | E5: 占调整预算％ | F5: 与上年同比+－％
A6: 一、一般公共服务支出 | B6: 18,677 | C6: 17,288 | D6: 16,612 | E6: =C6/B6 -> 92.6% | F6: =C6/D6-1 -> 4.1%
A7: 二、国防支出
A8: 三、公共安全支出 | B8: 8,387 | C8: 11,548 | D8: 13,507 | E8: =C8/B8 -> 137.7% | F8: =C8/D8-1 -> -14.5%
A9: 四、教育支出 | B9: =24150+10000 -> 34,150 | C9: 48,069 | D9: 37,148 | E9: 140.8% | F9: 29.4%
A10: 五、科学技术支出 | B10: 1,853 | C10: 2,145 | D10: 1,310 | E10: 115.8% | F10: 63.7%
A11: 六、文化体育与传媒支出 | B11: 1,658 | C11: 1,943 | D11: 1,485 | E11: 117.2% | F11: 30.8%
A12: 七、社会保障和就业支出 | B12: 28,537 | C12: 30,784 | D12: 34,873 | E12: 107.9% | F12: -11.7%
A13: 八、医疗卫生与计划生育支出 | B13: 18,860 | C13: 25,290 | D13: 24,420 | E13: 134.1% | F13: 3.6%
A14: 九、节能环保支出 | B14: 4,065 | C14: 4,501 | D14: 1,819 | E14: 110.7% | F14: 147.4%
A15: 十、城乡社区支出 | B15: 27,524 | C15: 28,252 | D15: 64,161 | E15: 102.6% | F15: -56.0%
A16: 十一、农林水支出 | B16: =12453+1704+1808+443+307+727 -> 17,442 | C16: 34,115 | D16: 29,187 | E16: 195.6% | F16: 16.9%
A17: 十二、交通运输支出 | B17: 2,123 | C17: 2,277 | D17: 1,791 | E17: 107.3% | F17: 27.1%
A18: 十三、资源勘探信息等支出 | B18: 3,215 | C18: 3,967 | D18: 6,189 | E18: 123.4% | F18: -35.9%
A19: 十四、商业服务业等支出 | B19: 811 | C19: 920 | D19: 888 | E19: 113.4% | F19: 3.6%
A20: 十五、金融支出 | B20: 420 | C20: 470 | D20: 208 | E20: 111.9% | F20: 126.0%
A21: 十六、国土海洋气象等支出 | B21: 780 | C21: 975 | E21: 125.0%
A22: 十七、住房保障支出 | B22: 145 | C22: 179 | D22: 1,006 | E22: 123.4% | F22: -82.2%
A23: 十八、粮油物资储备支出 | B23: 340 | C23: 389 | D23: 2,098 | E23: 114.4% | F23: -81.5%
A24: 十九、预备费 | B24: 1,600 | D24: 383
A25: 二十、其他支出 | C25: 144 | D25: 234 | F25: -38.5%
A26: 二十一、债务付息支出 | C26: 2,998 | D26: 2,217 | F26: 35.2%
A27: 一般公共预算支出合计 | B27: =SUM(B6:B26) -> 170,587 | C27: =SUM(C6:C26) -> 216,254 | D27: =SUM(D6:D26) -> 239,536 | E27: 126.8% | F27: -9.7%

Sheet 一般基本支出
A1: 附表三
A2: 2018年一般公共预算(本级）基本支出表
C3: 单位：万元
A4: 科目名称 | B4: 预算数 | C4: 调整预算数
B5: 一般公共预算基本支出 | C5: 一般公共预算基本支出
A6: 一般公共预算支出 | B6: 111,340 | C6: 67,068
A7: 机关工资福利支出 | B7: 22,255 | C7: 55,134
A8: 工资奖金津补贴 | B8: 18,997 | C8: 48,181
A9: 社会保障缴费 | C9: 2,282
A10: 住房公积金 | C10: 4,609
A11: 其他工资福利支出 | B11: 3,258 | C11: 62
A12: 机关商品和服务支出 | B12: 17,171 | C12: 9,208
A13: 办公经费 | B13: 4,778 | C13: 5,113
A14: 会议费 | B14: 232 | C14: 48
A15: 培训费 | B15: 170 | C15: 214
A16: 专用材料购置费 | B16: 26 | C16: 439
A17: 委托业务费 | B17: 715 | C17: 2,219
A18: 公务接待费 | B18: 170 | C18: 43
A19: 因公出国(境)费用
A20: 公务用车运行维护费 | B20: 207 | C20: 369
A21: 维修(护)费 | B21: 223 | C21: 640
A22: 其他商品和服务支出 | B22: 10,650 | C22: 123
A23: 机关资本性支出(一) | C23: 29
A24: 房屋建筑物购建
A25: 基础设施建设 | C25: 23
A26: 公务用车购置
A27: 土地征迁补偿和安置支出
A28: 设备购置 | C28: 6
A29: 大型修缮
A30: 其他资本性支出
A31: 机关资本性支出(二)
A32: 房屋建筑物购建
A33: 基础设施建设
A34: 公务用车购置
A35: 设备购置
A36: 大型修缮
A37: 其他资本性支出
A38: 对事业单位经常性补助 | B38: 32,816
A39: 工资福利支出 | B39: 28,836
A40: 商品和服务支出 | B40: 2,002
A41: 其他对事业单位补助 | B41: 1,978
A42: 对事业单位资本性补助
A43: 资本性支出(一)
A44: 资本性支出(二)
A45: 对企业补助 | B45: 700
A46: 费用补贴
A47: 利息补贴
A48: 其他对企业补助 | B48: 700
A49: 对企业资本性支出
A50: 对企业资本性支出(一)
A51: 对企业资本性支出(二)
A52: 对个人和家庭的补助 | B52: 38,398 | C52: 2,697
A53: 社会福利和救助 | B53: 7,303 | C53: 2,537
A54: 助学金 | B54: 71 | C54: 6
A55: 个人农业生产补贴
A56: 离退休费 | B56: 13,257 | C56: 151
A57: 其他对个人和家庭补助 | B57: 17,767 | C57: 3
A58: 对社会保障基金补助
A59: 对社会保险基金补助
A60: 补充全国社会保障基金
A61: 债务利息及费用支出
A62: 国内债务付息
A63: 国外债务付息
A64: 国内债务发行费用
A65: 国外债务发行费用
A66: 其他支出
A67: 赠与
A68: 国家赔偿费用支出
A69: 对民间非营利组织和群众性自治组织补贴
A70: 其他支出

Sheet 一般收支平衡
A1: 附表四
A2: 西安市阎良区2018年一般公共预算收支平衡表
D3: 单位：万元
A4: 收 入 | C4: 支 出
A5: 项 目 | B5: 执行数 | C5: 项 目 | D5: 执行数
A6: 一般公共预算收入合计 | B6: 96,672 | C6: 一般公共预算支出合计 | D6: 216,254
A7: 转移性收入 | B7: =B8+B9+B10+B15+B18+B19+B20 -> 130,533 | C7: 转移性支出 | D7: 5,412
A8: 返还性收入 | B8: 5,210 | C8: 返还性支出
A9: 一般性转移支付收入 | B9: 17,357 | C9: 一般性转移支付
A10: 专项转移支付收入 | B10: 93,250 | C10: 专项转移支付
A11: 下级上解收入 | C11: 上解上级支出 | D11: =SUM(D12:D14) -> 5,412
A12: 体制上解收入 | C12: 体制上解支出
A13: 出口退税专项上解收入 | C13: 出口退税专项上解支出 | D13: 1,024
A14: 专项上解收入 | C14: 专项上解支出 | D14: 4,388
A15: 地方政府一般债券转贷收入 | B15: =SUM(B16:B17) -> 7,654
A16: 转贷新增一般债券收入 | B16: 4,000 | C16: 债务还本支出 | D16: =SUM(D17:D18) -> 5,464
A17: 转贷置换一般债券收入 | B17: 3,654 | C17: 地方政府债务还本支出 | D17: 2,764
A18: 上年结余收入 | B18: 2,000 | C18: 使用置换债券还本支出 | D18: 2,700
A19: 调入预算稳定调节基金 | B19: 167 | C19: 安排预算稳定调节基金 | D19: 75
A20: 调入资金 | B20: 4,895 | C20: 年终结余
A21: 从政府性基金预算调入一般公共预算
A22: 从其他资金调入一般公共预算
A23: 一般公共预算收入总计 | B23: =B6+B7 -> 227,205 | C23: 一般公共预算支出总计 | D23: =SUM(D6:D7,D16,D19) -> 227,205

Sheet 2018政府性基金收入
A1: 附表五
A2: 西安市阎良区2018年政府性基金预算收入表
F3: 单位：万元
A4: 项 目 | B4: 2018年 | D4: 2017年决算数 | E4: 2018年执行数
B5: 预算数 | C5: 执行数 | E5: 占预算％ | F5: 与上年同比+－％
A6: 一、农网还贷资金收入
A7: 二、新型墙体材料专项基金收入 | D7: 292 | F7: =C7/D7-1 -> -100.0%
A8: 三、城市公用事业附加收入 | D8: 102 | F8: =C8/D8-1 -> -100.0%
A9: 四、国有土地收益基金收入 | B9: 5,000 | C9: 10,907 | D9: 2,783 | E9: =C9/B9 -> 218.1% | F9: 291.9%
A10: 五、农业土地开发资金收入
A11: 六、国有土地使用权出让收入 | C11: 274 | D11: 1,320 | F11: -79.2%
A12: 七、城市基础设施配套费收入 | B12: 5,200 | C12: 6,101 | D12: 5,305 | E12: =C12/B12 -> 117.3% | F12: 15.0%
A13: 八、车辆通行费 | D13: 42 | F13: -100.0%
A14: 九、污水处理费收入 | C14: 131
A15: 十、其他政府性基金收入 | C15: 141 | D15: 35 | F15: 302.9%
A17: 政府性基金预算收入合计 | B17: =SUM(B6:B15) -> 10,200 | C17: =SUM(C6:C15) -> 17,554 | D17: =SUM(D6:D15) -> 9,879 | E17: =C17/B17 -> 172.1% | F17: =C17/D17-1 -> 77.7%
A18: 上级专项转移支付收入 | C18: 14,535
A19: 专项债券收入 | C19: 30,000
A20: 上年结余
A21: 政府性基金总收入 | C21: =SUM(C17:C20) -> 62,089

Sheet 2018政府性基金支出
A1: 附表六
A2: 西安市阎良区2018年政府性基金预算支出表
D3: 单位：万元
A4: 项 目 | B4: 2018年执行数 | C4: 2017年决算数 | D4: 与上年同比+－％
A6: 一、教育支出
A7: 二、文化体育与传媒支出
A8: 三、社会保障和就业支出 | B8: 545 | C8: 413 | D8: =B8/C8-1 -> 32.0%
A9: 四、城乡社区支出 | B9: 57,182 | C9: 12,544 | D9: =B9/C9-1 -> 355.9%
A10: 五、农林水支出
A11: 六、交通运输支出
A12: 七、资源勘探电力信息等支出 | C12: 293 | D12: -100.0%
A13: 八、商业服务业等支出
A14: 九、其他支出 | B14: 4,362 | C14: 1,245 | D14: 250.4%
A17: 政府性基金预算调出资金
A18: 政府性基金预算支出合计 | B18: =SUM(B6:B14) -> 62,089 | C18: =SUM(C6:C14) -> 14,495 | D18: =B18/C18-1 -> 328.3%
A21: 政府性基金结余

Sheet 2018转移支付
A1: 附表七
A2: 西安市阎良区2018年一般公共预算税收返还和转移支付情况表
D3: 单位：万元
A4: 项 目 | B4: 金额 | D4: 与上年同比+－％
B5: 2018年 | C5: 2017年
A6: 一、返还性收入 | B6: 5,210 | C6: =SUM(C7:C10) -> 5,210
A7: 其中：增值税和消费税税收返还收入 | B7: 1,187 | C7: 1,187
A8: 所得税基数返还收入 | B8: 1,172 | C8: 1,172
A9: 营改增返还基数 | B9: 2,590 | C9: 2,590
A10: 成品油价格和税费改革税收返还收入 | B10: 261 | C10: 261
A11: 二、一般转移支付收入 | B11: =SUM(B12:B23) -> 17,357 | C11: =SUM(C12:C22) -> 15,652 | D11: =B11/C11-1 -> 10.9%
A12: 其中；（1）均衡性转移支付 | B12: 3,465 | C12: 3,289 | D12: 5.4%
A13: （2）县级基本财力保障机制奖补资金收入 | B13: 3,419 | C13: 2,547 | D13: 34.2%
A14: （3）企业事业单位划转补助收入 | B14: 3,180 | C14: 3,180
A15: （4）固定数额补助收入 | B15: 6,100 | C15: 6,100
A16: （5）成品油价格和税费改革转移支付补助收入 | B16: 105
A17: （6）基层公检法司转移支付收入
A18: （7）义务教育等转移支付收入
A19: （8）基本养老保险和低保等转移支付收入
A20: （9）新型农村合作医疗等转移支付收入
A21: （10）农村综合改革转移支付收入
A22: （11）结算补助收入 | B22: 362 | C22: 536 | D22: -32.5%
A23: （12)其他一般转移支付收入 | B23: 726
A24: 三、专项转移转移支付收入 | B24: =SUM(B25:B42) -> 93,250 | C24: =SUM(C25:C42) -> 78,415 | D24: 18.9%
A25: 其中：（1）一般公共服务 | B25: 435 | C25: 397 | D25: 9.6%
A26: （2）公共安全 | B26: 1,428 | C26: 3,706 | D26: -61.5%
A27: （3）教育 | B27: 17,546 | C27: 12,389 | D27: 41.6%
A28: （4）科学技术 | B28: 1,050 | C28: 263 | D28: 299.2%
A29: （5）文化体育与传媒 | B29: 381 | C29: 345 | D29: 10.4%
A30: （6）社会保障和就业 | B30: =16395-545 -> 15,850 | C30: 14,633 | D30: 8.3%
A31: （7）医疗卫生与计划生育 | B31: 11,552 | C31: 10,567 | D31: 9.3%
A32: （8）节能环保 | B32: 4,274 | C32: =1827-62 -> 1,765 | D32: 142.2%
A33: （9）城乡社区 | B33: =19926-9628 -> 10,298 | C33: 7,566 | D33: 36.1%
A34: （10）农林水 | B34: =28846-1086 -> 27,760 | C34: 24,649 | D34: 12.6%
A35: （11）交通运输 | B35: 546 | C35: 470 | D35: 16.2%
A36: （12）资源勘探信息等 | B36: 1,110 | C36: 832 | D36: 33.4%
A37: （13）商业服务业等 | B37: 625 | C37: 552 | D37: 13.2%
A38: （14）金融 | B38: 63 | C38: 4
A39: （15）国土海洋气象等 | B39: 10 | C39: 14 | D39: -28.6%
A40: （16）住房保障 | B40: 179 | C40: 133 | D40: 34.6%
A41: （17）粮油物资储备 | C41: 40 | D41: -100.0%
A42: （18）其他收入 | B42: 143 | C42: 90 | D42: 58.9%
A43: 四、地方政府一般债券转贷收入 | B43: =SUM(B44:B46) -> 7,654 | C43: =SUM(C44:C46) -> 37,030 | D43: -79.3%
A44: 其中： 转贷新增一般债券收入 | B44: 4,000 | C44: 4,000
A45: 再融资债券 | B45: 954
A46: 转贷置换一般债券收入 | B46: =2700 -> 2,700 | C46: 33,030 | D46: =B46/C46-1 -> -91.8%
A47: 一般公共预算补助收入总计 | B47: =SUM(B6,B11,B24,B43) -> 123,471 | C47: =SUM(C6,C11,C24,C43) -> 136,307 | D47: =B47/C47-1 -> -9.4%
A48: 备注：无对其他地区转移支付

Sheet 2018社保基金收入
A1: 附表八
A2: 西安市阎良区2018年社会保险基金收入表
A4: 项 目 | B4: 2018年预算数 | C4: 2018执行数 | D4: 执行数占预算%
A5: 一、社会保险基金收入 | B5: 12,923 | C5: 14,092 | D5: 109.0%
A6: 1、新型农村合作医疗基金收入 | B6: 3,062 | C6: 3,214 | D6: 105.0%
A7: 2、城乡居民基本养老保险基金收入 | B7: 838 | C7: 925 | D7: 110.4%
A8: 3、机关事业单位基本养老保险基金收入 | B8: 9,023 | C8: 9,953 | D8: 110.3%
A9: 二、利息收入 | B9: 131 | C9: 134 | D9: 102.3%
A10: 三、财政补贴收入 | B10: 20,180 | C10: 20,828 | D10: 103.2%
A11: 四、人员转移收入 | B11: 33 | C11: 22 | D11: 66.7%
A14: 社会保险基金预算收入合计 | B14: 33,267 | C14: 35,076 | D14: 105%
A15: 转移性收入 | B15: 15,024 | C15: 17,014
A16: 社会保险基金预算上年结余收入 | B16: 15,024 | C16: 17,014
A17: 社会保险基金预算收入总计 | B17: 48,291 | C17: 52,090 | D17: 108%

Sheet 2018社保基金支出
A1: 附表九
A2: 西安市阎良区2018年社会保险基金支出表
D3: 单位：万元
A4: 项 目 | B4: 2018年预算数 | C4: 2018执行数 | D4: 执行数占预算%
A5: 一、新型农村合作医疗基金支出 | B5: 11,257 | C5: 11,957 | D5: 106.2%
A6: 1、统筹基金支出 | B6: 10,671 | C6: 11,041 | D6: 103.5%
A7: 2、大病保险支出 | B7: 586 | C7: 916 | D7: 156.3%
A8: 3、上解上级支出支出
A9: 二、城乡居民基本养老保险基金支出 | B9: 5,957 | C9: 6,573 | D9: 110.3%
A10: 1、基本养老金支出 | B10: 5,630 | C10: 6,261 | D10: 111.2%
A11: 2、个人账户养老金支出 | B11: 264 | C11: 251 | D11: 95.1%
A12: 3、丧葬抚恤补助支出 | B12: 60 | C12: 56 | D12: 93.3%
A13: 4、人员转移支出 | B13: 3 | C13: 5 | D13: 166.7%
A14: 三、机关事业单位基本养老保险基金支出 | B14: 14,645 | C14: 14,595 | D14: 99.7%
A15: 其中：人员转移支出 | B15: 7 | C15: 7 | D15: 100.0%
A16: 社会保险基金预算支出合计 | B16: 31,859 | C16: 33,125 | D16: 104.0%
A17: 转移性支出 | B17: 16,432 | C17: 18,965
A18: 社会保险基金预算年终结余 | B18: 16,432 | C18: 18,965
A19: 社会保险基金预算支出总计 | B19: 48,291 | C19: =C16+C17 -> 52,090 | D19: 107.1%

Sheet 国有资本经营收入
A1: 附表十
A2: 西安市阎良区2018年国有资本经营预算收入表
D3: 单位：万元
A4: 项 目 | B4: 2018年执行数 | C4: 2018年预算数 | D4: 与上年同比+－％
A5: 一、利润收入
A6: 二、股权、股息收入 | C6: 150
A7: 三、产权转让收入
A8: 四、其他国有资本经营预算收入
A9: 国有资本经营预算收入合计 | C9: =SUM(C5:C8) -> 150
A10: 转移性收入 | C10: * | D10: *
A11: 国有资本经营预算转移支付收入 | C11: * | D11: *
A12: 上年结余收入 | C12: * | D12: *
A13: 国有资本经营预算收入总计 | C13: * | D13: *
A14: 本表预算科目按财政部发布的2019年预算科目列示。

Sheet 国有资本支出
A1: 附表十一
A2: 西安市阎良区2018年国有资本经营预算支出表
D3: 单位：万元
A4: 项 目 | B4: 2018年 执行数 | C4: 2018年 预算数 | D4: 与上年同比+－％
A5: 一、国有资本经营预算支出
A6: 1、解决历史遗留问题及改革成本支出
A7: 2、国有企业资本金注入
A8: 3、其他国有资本经营预算支出
A9: 二、国有企业资本金注入
A10: 三、国有企业政策性补贴
A11: 四、其他国有资本经营预算支出
A12: 国有资本经营预算支出合计
A13: 转移性支出 | C13: 150 | D13: *
A14: 国有资本经营预算调出资金 | C14: * | D14: *
A15: 结转下年 | C15: * | D15: *
A16: 国有资本经营预算支出总计 | C16: 150 | D16: *

Sheet 2018年债务情况表
A1: 附表十二
A2: 西安市阎良区2018年债务限额和余额情况表
N3: 单位：万元
A4: 项 目 | B4: 一 般 债 务 | F4: 专 项 债 务 | J4: 再 融 资 债 务 | N4: 备注
B5: 上年结余情况 | C5: 当年新增债务 | D5: 当年偿还债务情况 | E5: 债务余额 | F5: 上年结余情况 | G5: 当年新增债务 | H5: 当年偿还债务情况 | I5: 债务余额 | J5: 上年结余情况 | K5: 当年新增债务 | L5: 当年偿还债务情况 | M5: 债务余额
A6: 2018年初政府举债情况 | B6: 98,326
A7: 2018年当年新增债务情况 | C7: =SUM(C8:C11) -> 6,700
A8: 其中：新增置换债券 | C8: 2,700
A9: 新增再融资债 | K9: 954
A10: 新增专项债 | G10: 30,000
A11: 新增地方政府债务 | C11: 4,000
A12: 2018年当年偿还政府债券情况 | D12: =SUM(D13:D14) -> 14,982
A13: 其中：使用置换债券还本支出 | D13: 2,700
A14: 使用区级财力还本支出 | D14: =2764+9518 -> 12,282
A16: 2018年底债务余额 | B16: =B6+C7-D12 -> 90,044 | F16: =F10+G10-H10 -> 30,000 | J16: 954
A17: 2018年债务限额 | B17: 118,400

Sheet 2019年一般收入
A1: 附表十三
A2: 西安市阎良区2019年一般公共预算收入预算表
D3: 单位：万元
A4: 项 目 | B4: 2019年预算数 | C4: 2018年执行数 | D4: 与上年同比+－％
A6: 一、税收收入 | B6: =B20+B21+B7 -> 51,988 | C6: =C7+C20+C21 -> 84,935 | D6: =B6/C6-1 -> -38.8%
A7: 工商税收 | B7: =SUM(B8:B19) -> 42,338 | C7: =SUM(C8:C18) -> 41,402 | D7: 2.3%
A8: 增值税 | B8: =18212-2000+20+200+508 -> 16,940 | C8: 16,384 | D8: 3.4%
A9: 营业税 | C9: 44
A10: 企业所得税 | B10: =4562-1200 -> 3,362 | C10: 4,029 | D10: -16.6%
A11: 个人所得税 | B11: 3,943 | C11: 4,805 | D11: -17.9%
A12: 资源税
A13: 城市维护建设税 | B13: 2,906 | C13: 3,137 | D13: -7.4%
A14: 房产税 | B14: =3956-900 -> 3,056 | C14: 3,719 | D14: -17.8%
A15: 印花税 | B15: 2,889 | C15: 2,648 | D15: 9.1%
A16: 城镇土地使用税 | B16: 3,534 | C16: 1,665 | D16: 112.3%
A17: 土地增值税 | B17: 3,362 | C17: 3,191 | D17: 5.4%
A18: 车船税 | B18: 2,346 | C18: 1,780 | D18: 31.8%
A19: 环境保护税
A20: 耕地占用税 | B20: 4,630 | C20: 10,754 | D20: -56.9%
A21: 契税 | B21: 5,020 | C21: 32,779 | D21: -84.7%
A22: 其他税收收入
A23: 二、非税收入 | B23: =B24+B31+B32+B33+B34 -> 17,212 | C23: =C24+C31+C32+C33+C34+C35 -> 11,737 | D23: 46.6%
A24: 专项收入 | B24: =SUM(B25:B30) -> 12,400 | C24: 1,766 | D24: 602.2%
A25: 排污费收入
A26: 教育费附加收入及地方教育附加 | B26: 2,200 | C26: 1,763 | D26: 24.8%
A27: 残疾人就业保障金收入
A28: 教育资金收入 | B28: 5,100 | C28: 3
A29: 农田水利建设资金收入 | B29: 5,100
A30: 其他专项收入
A31: 行政事业性收费收入 | B31: 2,700 | C31: 2,733 | D31: -1.2%
A32: 罚没收入 | B32: 1,300 | C32: 1,328 | D32: -2.1%
A33: 国有资本经营收入
A34: 国有资源（资产）有偿使用收入 | B34: 812 | C34: 5,910 | D34: -86.3%
A35: 其他收入
A36: 一般公共预算收入合计 | B36: =SUM(B6,B23) -> 69,200 | C36: =SUM(C6,C23) -> 96,672 | D36: -28.4%

Sheet 2019本级支出功能分类
A1: 附表十四
A2: 西安市阎良区2019年一般公共预算（本级）支出预算表（按功能分类科目）
F3: 单位：万元
A4: 项 目 | B4: 2019年度预算数 | C4: 2019年区本级预算数 | E4: 2018年调整预算数 | F4: 与上年同比+－％
B5: 2018年度预算数 | D5: 2018年度预下专款
A6: 一、一般公共服务 | C6: =C7+C19+C28+C40+C52+C63+C74+C86+C95+C109+C118+C129+C132+C135+C141+C148+C156+C163+C169+C175+C181+C185 -> 21,247 | E6: =SUM(E7,E19,E28,E40,E52,E63,E74,E86,E95,E109,E118,E129,E132,E135,E141,E148,E156,E163,E169,E175,E181,E185) -> 18,677 | F6: =C6/E6-1 -> 13.8%
A7: 人大事务 | C7: =SUM(C8:C18) -> 705 | E7: =SUM(E8:E18) -> 670 | F7: =C7/E7-1 -> 5.2%
A8: 行政运行 | C8: =424+172+50 -> 646 | E8: 611 | F8: =C8/E8-1 -> 5.7%
A9: 一般行政管理事务 | E9: =13 -> 13
A10: 机关服务 | C10: 13
A11: 人大会议 | C11: 24 | E11: 24
A12: 人大立法
A13: 人大监督
A14: 人大代表履职能力提升
A15: 代表工作 | C15: 22 | E15: 22
A16: 人大信访工作
A17: 事业运行
A18: 其他人大事务支出
A19: 政协事务 | C19: =SUM(C20:C27) -> 570 | E19: =SUM(E20:E27) -> 520 | F19: =C19/E19-1 -> 9.6%
A20: 行政运行 | C20: =486+24 -> 510 | E20: 461 | F20: 10.6%
A21: 一般行政管理事务 | C21: 37 | E21: 38 | F21: -2.6%
A22: 机关服务
A23: 政协会议 | C23: 17 | E23: 15 | F23: 13.3%
A24: 委员视察
A25: 参政议政 | C25: 6 | E25: 6
A26: 事业运行
A27: 其他政协事务支出
A28: 政府办公厅(室)及相关机构事务 | C28: =SUM(C29:C39) -> 11,237 | E28: =SUM(E29:E39) -> 9,970 | F28: 12.7%
A29: 行政运行 | C29: =6592+1977 -> 8,569 | E29: =6716+805+830 -> 8,351 | F29: 2.6%
A30: 一般行政管理事务 | C30: 107 | E30: =327 -> 327 | F30: -67.3%
A31: 机关服务 | C31: 140 | E31: =155 -> 155 | F31: -9.7%
A32: 专项服务
A33: 专项业务活动 | C33: 20
A34: 政务公开审批
A35: 法制建设
A36: 信访事务 | C36: 191 | E36: =60 -> 60 | F36: 218.3%
A37: 参事事务 | C37: 78
A38: 事业运行 | C38: 682 | E38: =63 -> 63
A39: 其他政府办公厅（室）及相关机构事务支出 | C39: =1000+450 -> 1,450 | E39: =594+450-30 -> 1,014 | F39: 43.0%
A40: 发展与改革事务 | C40: =SUM(C41:C51) -> 1,686 | E40: =SUM(E41:E51) -> 640 | F40: 163.4%
A41: 行政运行 | C41: =481+119 -> 600 | E41: 502 | F41: 19.5%
A42: 一般行政管理事务 | C42: 15 | E42: 15
A43: 机关服务
A44: 战略规划与实施
A45: 日常经济运行调节
A46: 社会事业发展规划 | C46: 10 | E46: =10+40 -> 50 | F46: -80.0%
A47: 经济体制改革研究
A48: 物价管理 | C48: 2 | E48: 20 | F48: -90.0%
A49: 应对气象变化管理事务
A50: 事业运行 | C50: 59 | E50: 53 | F50: 11.3%
A51: 其他发展与改革事务支出 | C51: 1,000
A52: 统计信息事务 | C52: =SUM(C53:C62) -> 201 | E52: =SUM(E53:E62) -> 320 | F52: -37.2%
A53: 行政运行 | C53: =80+70 -> 150 | E53: 164 | F53: -8.5%
A54: 一般行政管理事务
A55: 机关服务
A56: 信息事务 | E56: 6
A57: 专项统计业务 | C57: 14 | E57: 14
A58: 统计管理
A59: 专项普查活动
A60: 统计抽样调查 | E60: 7
A61: 事业运行 | E61: 92
A62: 其他统计信息事务支出 | C62: 37 | E62: 37
A63: 财政事务 | C63: =SUM(C64:C73) -> 1,061 | E63: =SUM(E64:E73) -> 1,060 | F63: 0.1%
A64: 行政运行 | C64: =480+219 -> 699 | E64: 704 | F64: -0.7%
A65: 一般行政管理事务 | C65: 186 | E65: 149 | F65: 24.8%
A66: 机关服务 | C66: 40 | E66: 35 | F66: 14.3%
A67: 预算改革业务
A68: 财政国库业务
A69: 财政监察 | C69: 25 | E69: 30 | F69: -16.7%
A70: 信息化建设 | C70: 41 | E70: 65 | F70: -36.9%
A71: 财政委托业务支出
A72: 事业运行 | C72: 55 | E72: 53 | F72: 3.8%
A73: 其他财政事务支出 | C73: 15 | E73: 24 | F73: -37.5%
A74: 税收事务 | C74: =SUM(C75:C85) -> 1,693 | E74: =SUM(E75:E85) -> 1,695 | F74: -0.1%
A75: 行政运行 | C75: 18 | E75: 20 | F75: -10.0%
A76: 一般行政管理事务 | C76: 1,675 | E76: 1,675
A77: 机关服务
A78: 税务办案
A79: 税务登记证及发票管理
A80: 代扣代收代征税款手续费
A81: 税务宣传
A82: 协税护税
A83: 信息化建设
A84: 事业运行
A85: 其他税收事务支出
A86: 审计事务 | C86: =SUM(C87:C94) -> 246 | E86: =SUM(E87:E94) -> 277 | F86: =C86/E86-1 -> -11.2%
A87: 行政运行 | C87: =124+56 -> 180 | E87: 197 | F87: =C87/E87-1 -> -8.6%
A88: 一般行政管理事务 | C88: 1
A89: 机关服务
A90: 审计业务 | C90: 45 | E90: 60 | F90: =C90/E90-1 -> -25.0%
A91: 审计管理
A92: 信息化建设 | C92: 20 | E92: 20
A93: 事业运行
A94: 其他审计事务支出
A95: 人力资源事务 | C95: =SUM(C96:C108) -> 18 | E95: =SUM(E96:E108) -> 25 | F95: =C95/E95-1 -> -28.0%
A96: 行政运行 | C96: 3 | E96: 3
A97: 一般行政管理事务 | C97: 0
A98: 机关服务 | C98: 1 | E98: 1
A99: 政府特殊津贴
A100: 资助留学回国人员
A101: 军队转业干部安置 | E101: 1
A102: 引进人才费用
A103: 公务员考核
A104: 公务员履职能力提升
A105: 公务员招考
A106: 公务员综合管理
A107: 事业运行
A108: 其他人力资源事务支出 | C108: 14 | E108: 20 | F108: =C108/E108-1 -> -30.0%
A109: 纪检监察事务 | C109: =SUM(C110:C117) -> 790 | E109: =SUM(E110:E117) -> 760 | F109: =C109/E109-1 -> 3.9%
A110: 行政运行 | C110: =482+192 -> 674 | E110: 643 | F110: =C110/E110-1 -> 4.8%
A111: 一般行政管理事务 | C111: 16 | E111: 72 | F111: =C111/E111-1 -> -77.8%
A112: 机关服务
A113: 大案要案查处
A114: 派驻派出机构
A115: 中央巡视 | C115: 100 | E115: 45 | F115: =C115/E115-1 -> 122.2%
A116: 事业运行
A117: 其他纪检监察事务支出
A118: 商贸事务 | C118: =SUM(C119:C128) -> 199 | E118: =SUM(E119:E128) -> 100 | F118: =C118/E118-1 -> 99.0%
A119: 行政运行 | C119: 15
A120: 一般行政管理事务
A121: 机关服务
A122: 对外贸易管理
A123: 国际经济合作
A124: 外资管理
A125: 国内贸易管理
A126: 招商引资 | C126: =20+100 -> 120 | E126: 100 | F126: =C126/E126-1 -> 20.0%
A127: 事业运行 | C127: 64
A128: 其他商贸事务支出
A129: 工商行政管理事务 | C129: 8 | E129: =SUM(E130:E131) -> 8
A130: 行政运行 | C130: 8 | E130: 8
A131: 一般行政管理事务
A132: 质量技术监督与检验检疫事务 | C132: 8 | E132: =SUM(E133:E134) -> 10 | F132: =C132/E132-1 -> -20.0%
A133: 行政运行 | C133: 8 | E133: 10 | F133: =C133/E133-1 -> -20.0%
A134: 一般行政管理事务
A135: 档案事务 | C135: =SUM(C136:C140) -> 236 | E135: =SUM(E136:E140) -> 250 | F135: =C135/E135-1 -> -5.6%
A136: 行政运行 | C136: =168+60 -> 228 | E136: =175+63 -> 238 | F136: =C136/E136-1 -> -4.2%
A137: 一般行政管理事务 | C137: 8 | E137: 12 | F137: =C137/E137-1 -> -33.3%
A138: 机关服务
A139: 档案馆
A140: 其他档案事务支出
A141: 民主党派及工商联事务 | C141: =SUM(C142:C147) -> 73 | E141: =SUM(E142:E147) -> 50 | F141: =C141/E141-1 -> 46.0%
A142: 行政运行 | C142: =52+15 -> 67 | E142: 41 | F142: =C142/E142-1 -> 63.4%
A143: 一般行政管理事务 | C143: 6 | E143: 9 | F143: =C143/E143-1 -> -33.3%
A144: 机关服务
A145: 参政议政
A146: 事业运行
A147: 其他民主党派及工商联事务支出
A148: 群众团体事务 | C148: =SUM(C149:C155) -> 254 | E148: =SUM(E149:E155) -> 210 | F148: =C148/E148-1 -> 21.0%
A149: 行政运行 | C149: =150+50 -> 200 | E149: =112+45 -> 157 | F149: =C149/E149-1 -> 27.4%
A150: 一般行政管理事务 | C150: 54 | E150: 53 | F150: =C150/E150-1 -> 1.9%
A151: 机关服务
A152: 厂务公开
A153: 工会疗养休养
A154: 事业运行
A155: 其他群众团体事务支出
A156: 党委办公厅（室）及相关机构事务 | C156: =SUM(C157:C162) -> 813 | E156: =SUM(E157:E162) -> 525 | F156: =C156/E156-1 -> 54.9%
A157: 行政运行 | C157: =362+81 -> 443 | E157: =275+109 -> 384 | F157: =C157/E157-1 -> 15.4%
A158: 一般行政管理事务 | C158: 96 | E158: 91 | F158: =C158/E158-1 -> 5.5%
A159: 机关服务 | C159: 50 | E159: 50
A160: 专项业务
A161: 事业运行
A162: 其他党委办公厅（室）及相关机构事务支出 | C162: 224
A163: 组织事务 | C163: =SUM(C164:C168) -> 557 | E163: =SUM(E164:E168) -> 402 | F163: =C163/E163-1 -> 38.6%
A164: 行政运行 | C164: =187+91 -> 278 | E164: =197+82 -> 279 | F164: =C164/E164-1 -> -0.4%
A165: 一般行政管理事务 | C165: 279 | E165: =83+40 -> 123 | F165: =C165/E165-1 -> 126.8%
A166: 机关服务
A167: 事业运行
A168: 其他组织事务支出
A169: 宣传事务 | C169: =SUM(C170:C174) -> 433 | E169: =SUM(E170:E174) -> 460 | F169: =C169/E169-1 -> -5.9%
A170: 行政运行 | C170: =190+80 -> 270 | E170: 211 | F170: =C170/E170-1 -> 28.0%
A171: 一般行政管理事务 | C171: 143 | E171: 182 | F171: =C171/E171-1 -> -21.4%
A172: 机关服务
A173: 事业运行 | E173: 42
A174: 其他宣传事务支出 | C174: 20 | E174: 25 | F174: =C174/E174-1 -> -20.0%
A175: 统战事务 | C175: =SUM(C176:C180) -> 82 | E175: =SUM(E176:E180) -> 76 | F175: =C175/E175-1 -> 7.9%
A176: 行政运行 | C176: =39+13 -> 52 | E176: =32+12 -> 44 | F176: =C176/E176-1 -> 18.2%
A177: 一般行政管理事务 | C177: 30 | E177: 32 | F177: =C177/E177-1 -> -6.3%
A178: 机关服务
A179: 事业运行
A180: 其他统战事务支出
A181: 其他共产党事务支出 | C181: =SUM(C182:C184) -> 377 | E181: =SUM(E182:E184) -> 649 | F181: =C181/E181-1 -> -41.9%
A182: 行政运行 | C182: =169+129 -> 298 | E182: =371+118+4 -> 493 | F182: =C182/E182-1 -> -39.6%
A183: 一般行政管理事务 | C183: 79 | E183: 156 | F183: =C183/E183-1 -> -49.4%
A184: 其他共产党事务支出
A185: 其他一般公共服务支出
A186: 国家赔偿费用支出
A187: 其他一般公共服务支出
A188: 二、外交支出
A189: 对外合作与交流
A190: 其他外交支出
A191: 三、国防支出
A192: 国防动员
A193: 兵役征集
A194: 经济动员
A195: 人民防空
A196: 交通战备
A197: 国防教育
A198: 预备役部队
A199: 民兵
A200: 其他国防动员支出
... 668 more rows

Sheet 2019本级支出经济科目
A1: 附表十五
A2: 西安市阎良区2019年一般公共预算（本级）支出预算表（按经济分类科目） | P2: 西安市阎良区2019年一般公共预算（本级）支出预算表（按经济分类科目） | AD2: 西安市阎良区2019年一般公共预算（本级）支出预算表（按经济分类科目） | AR2: 西安市阎良区2019年一般公共预算（本级）支出预算表（按经济分类科目） | BL2: 西安市阎良区2019年一般公共预算（本级）支出预算表（按经济分类科目）
N4: 单位：万元 | AB4: 单位：万元 | AP4: 单位：万元 | BJ4: 单位：万元 | BW4: 单位：万元
A5: 功能科目分类 | B5: 总计 | C5: 机关工资福利支出 | H5: 机关商品和服务支出 | P5: 机关商品和服务支出 | S5: 机关资本性支出（一） | AA5: 机关资本性支出（二） | AD5: 机关资本性支出（二） | AG5: 对事业单位经常性补助 | AK5: 对事业单位资本性补助 | AN5: 对企业补助 | AR5: 对企业资本性支出 | AU5: 对个人和家庭的补助 | BA5: 对社会保障基金补助 | BD5: 债务利息及费用支出 | BI5: 债务还本支出 | BL5: 转移性支出 | BQ5: 预备费及预留 | BT5: 其他支出
C6: 小计 | D6: 工资奖金津补贴 | E6: 社会保障缴费 | F6: 住房公积金 | G6: 其他工资福利支出 | H6: 小计 | I6: 办公经费 | J6: 会议费 | K6: 培训费 | L6: 专用材料购置费 | M6: 委托业务费 | N6: 公务接待费 | O6: 因公出国（境）费用 | P6: 公务用车运行维护费 | Q6: 维修（护）费 | R6: 其他商品和服务支出 | S6: 小计 | T6: 房屋建筑物购建 | U6: 基础设施建设 | V6: 公务用车购置 | W6: 土地征迁补偿和安置支出 | X6: 设备购置 | Y6: 大型修缮 | Z6: 其他资本性支出 | AA6: 小计 | AB6: 房屋建筑物购建 | AC6: 基础设施建设 | AD6: 公务用车购置 | AE6: 设备购置 | AF6: 其他资本性支出 | AG6: 小计 | AH6: 工资福利支出 | AI6: 商品和服务支出 | AJ6: 其他对事业单位补助 | AK6: 小计 | AL6: 资本性支出（一） | AM6: 资本性支出（二） | AN6: 小计 | AO6: 费用补贴 | AP6: 利息补贴 | AQ6: 其他对企业补助 | AR6: 小计 | AS6: 对企业资本性支出（一） | AT6: 对企业资本性支出（二） | AU6: 小计 | AV6: 社会福利和救助 | AW6: 助学金 | AX6: 个人农业生产补贴 | AY6: 离退休费 | AZ6: 其他对个人和家庭补助 | BA6: 小计 | BB6: 对社会保险基金补助 | BC6: 补充全国社会保障基金 | BD6: 小计 | BE6: 国内债务付息 | BF6: 国外债务付息 | BG6: 国内债务发行费用 | BH6: 国外债务发行费用 | BI6: 小计 | BJ6: 国内债务还本 | BK6: 国外债务还本 | BL6: 小计 | BM6: 上下级政府间转移性支出 | BN6: 援助其他地区支出 | BO6: 债务转贷 | BP6: 调出资金 | BQ6: 小计 | BR6: 预备费 | BS6: 预留 | BT6: 小计 | BU6: 赠与 | BV6: 国家赔偿费用支出 | BW6: 对民间非营利组织和群众性自治组织补贴 | BX6: 其他支出
A7: 合计 | B7: =SUM(B8:B26) -> 121,819 | C7: 29,538 | D7: 13,289 | E7: 6,002 | G7: 10,247 | H7: 13,386 | I7: 3,174 | J7: 123 | K7: 213 | L7: 116 | M7: 3,347 | N7: 157 | P7: =SUM(P8:P26) -> 425 | Q7: 218 | R7: 5,613 | S7: 4,332 | T7: 882 | U7: 40 | X7: =SUM(X8:X26) -> 257 | Y7: 0 | Z7: 3,154 | AA7: 2 | AC7: 2 | AG7: 40,871 | AH7: 36,459 | AI7: 3,189 | AJ7: 1,223 | AK7: 3,746 | AL7: 3,746 | AU7: =SUM(AU8:AU26) -> 21,117 | AV7: 5,048 | AW7: 52 | AY7: =SUM(AY8:AY26) -> 12,615 | AZ7: =SUM(AZ8:AZ26) -> 3,402 | BQ7: =SUM(BQ8:BQ26) -> 5,200 | BR7: 1,600 | BS7: 4,600 | BT7: 3,627 | BX7: =SUM(BX8:BX26) -> 3,627
A8: 【201】一般公共服务支出 | B8: =SUM(C8,H8,S8,AA8,AG8,AK8,AN8,AR8,AU8,BA8,BD8,BI8,BL8,BQ8,BT8) -> 21,247 | C8: =SUM(D8:G8) -> 12,022 | D8: 6,109 | E8: 1,060 | G8: =784.788+450+2000-518+1060+1077 -> 4,854 | H8: =SUM(I8:R8) -> 4,729 | I8: 1,203 | J8: 82 | K8: 200 | M8: 425 | N8: 71 | P8: 114 | Q8: 131 | R8: =727.9079+100+1675 -> 2,503 | S8: =SUM(T8:Z8) -> 32 | X8: 32 | Y8: 0 | AG8: =SUM(AH8:AJ8) -> 2,457 | AH8: 2,278 | AI8: 179 | AK8: =SUM(AL8:AM8) -> 131 | AL8: 131 | AU8: =SUM(AV8:AZ8) -> 1,741 | AV8: 1,408 | AY8: 85 | AZ8: 248 | BT8: =SUM(BU8:BX8) -> 135 | BX8: 135
A9: 【204】公共安全支出 | B9: 9,721 | C9: 7,501 | D9: 4,107 | E9: 404 | G9: =1207.456+900+404+478 -> 2,989 | H9: 2,027 | I9: 1,232 | J9: 27 | M9: 5 | N9: 51 | P9: 222 | Q9: 34 | R9: 455 | Y9: 0 | AG9: 185 | AH9: 63 | AI9: 50 | AJ9: 72 | AU9: 8 | AV9: 4 | AY9: 5
A10: 【205】教育支出 | B10: 33,232 | C10: 3,518 | D10: 177 | E10: 2,096 | G10: =18.84+350+2096-1220 -> 1,245 | H10: 197 | I10: 47 | K10: 6 | N10: 1 | Q10: 2 | R10: 140 | S10: 880 | T10: 880 | Y10: 0 | AG10: 26,591 | AH10: =20418.9172+5000 -> 25,419 | AI10: 1,172 | AK10: 1,005 | AL10: 1,005 | AU10: 1,034 | AV10: 240 | AW10: 39 | AY10: 55 | AZ10: 700 | BT10: =SUM(BU10:BX10) -> 7 | BX10: 7
A11: 【206】科学技术支出 | B11: 128 | H11: 128 | R11: 128 | Y11: 0
A12: 【207】文化旅游体育与传媒支出 | B12: 797 | C12: 425 | D12: 256 | E12: 15 | G12: =12.336+170-28 -> 154 | H12: 74 | I12: 41 | J12: 1 | N12: 2 | P12: 3 | Q12: 12 | R12: 15 | S12: 12 | X12: 12 | Y12: 0 | AG12: 264 | AH12: 223 | AI12: 41 | AL12: 0 | AU12: 21 | AV12: 1 | AY12: 20
A13: 【208】社会保障和就业支出 | B13: 20,434 | C13: 2,259 | D13: 352 | E13: =1601.04+30 -> 1,631 | G13: =75.452+200 -> 275 | H13: 300 | I13: 78 | J13: 1 | N13: 5 | P13: 3 | Q13: 2 | R13: 211 | S13: 6 | X13: 6 | Y13: 0 | AG13: 623 | AH13: 513 | AI13: 110 | AL13: 0 | AU13: 17,246 | AV13: =2047.7918+923 -> 2,971 | AW13: 13 | AY13: =14248.212932-1839 -> 12,409 | AZ13: 1,853 | BS13: 1,000
A14: 【210】卫生健康支出 | B14: 11,621 | C14: 1,132 | D14: 518 | E14: 487 | G14: 127 | H14: 683 | I14: 222 | J14: 2 | K14: 4 | L14: 108 | M14: 113 | N14: 6 | P14: 29 | Q14: 3 | R14: 196 | S14: 1,082 | X14: 202 | Y14: 0 | Z14: =330+550 -> 880 | AG14: 5,907 | AH14: 4,659 | AI14: 849 | AJ14: 400 | AK14: 2,004 | AL14: 2,004 | AU14: 813 | AV14: 362 | AZ14: =2080+15-1644 -> 451
A15: 【211】节能环保支出 | B15: 220 | C15: 40 | E15: 40 | H15: 160 | R15: 160 | Y15: 0 | AG15: 20 | AI15: 20
A16: 【212】城乡社区支出 | B16: =SUM(C16,H16,S16,AA16,AG16,AK16,AN16,AR16,AU16,BA16,BD16,BI16,BL16,BQ16,BT16,) -> 8,900 | C16: 905 | D16: 471 | E16: 134 | G16: =140.004+160 -> 300 | H16: 3,390 | I16: =363.901341-220 -> 144 | J16: 2 | M16: =2688.258-100 -> 2,588 | N16: 6 | P16: 43 | Q16: =101.135-90 -> 11 | R16: =755.756-160 -> 596 | S16: 2,244 | T16: 2 | U16: =2179-2139 -> 40 | X16: 2 | Y16: 0 | Z16: =438.2+100+1588-351-600+1026 -> 2,201 | AG16: 1,564 | AH16: 1,167 | AI16: 330 | AJ16: 67 | AK16: 600 | AL16: 600 | AU16: 197 | AV16: 5 | AY16: 42 | AZ16: 150
A17: 【213】农林水支出 | B17: =SUM(C17,H17,S17,AA17,AG17,AK17,AN17,AR17,AU17,BA17,BD17,BI17,BL17,BQ17,BT17) -> 4,998 | C17: 566 | D17: 416 | E17: 48 | G17: =51.588+50 -> 102 | H17: 552 | I17: 56 | J17: 7 | K17: 3 | L17: 8 | M17: 1 | N17: 4 | P17: 6 | Q17: 16 | R17: 452 | S17: 4 | X17: 4 | Y17: 0 | AG17: 2,157 | AH17: 1,272 | AI17: 385 | AJ17: 500 | AK17: 6 | AL17: 6 | AU17: 46 | AV17: 46 | BT17: =SUM(BU17:BX17) -> 1,667 | BX17: 1,667
A18: 【214】交通运输支出 | B18: 1,253 | C18: 195 | D18: 123 | E18: 20 | G18: =12.468+40 -> 52 | H18: 284 | I18: 5 | N18: 1 | Q18: 1 | R18: =445-167 -> 278 | S18: 65 | Y18: 0 | Z18: 65 | AG18: 448 | AH18: 430 | AI18: 18 | AU18: 2 | AV18: 2 | BT18: 258 | BX18: 258
A19: 【215】资源勘探信息等支出 | B19: 2,688 | C19: 548 | D19: 411 | E19: 15 | G19: =92.152+30 -> 122 | H19: 526 | I19: 70 | J19: 1 | M19: 210 | N19: 4 | P19: 3 | Q19: 1 | R19: =31.6+206 -> 238 | Y19: 0 | AG19: 48 | AH19: 37 | AI19: 12 | AU19: 5 | AV19: 5 | BT19: 1,560 | BX19: =1000+560 -> 1,560
A20: 【216】商业服务业等支出 | B20: 124 | C20: 52 | D20: 32 | E20: 10 | G20: 10 | H20: 70 | I20: 36 | Q20: 1 | R20: 33 | Y20: 0 | AU20: 2 | AV20: 2
A21: 【217】金融支出 | B21: 153 | C21: 42 | E21: 42 | H21: 15 | I21: 11 | K21: 1 | P21: 3 | Q21: 1 | Y21: 0 | AA21: =SUM(AB21:AF21) -> 2 | AC21: 2 | AG21: 94 | AH21: 93 | AI21: 1
A22: 【220】自然资源海洋气象等支出 | B22: 885 | C22: 332 | D22: 316 | G22: 16 | H22: 87 | I22: 29 | J22: 1 | M22: 5 | N22: 5 | Q22: 2 | R22: 44 | S22: 8 | Y22: 0 | Z22: 8 | AG22: 456 | AH22: 271 | AI22: 2 | AJ22: 184 | AU22: 1 | AV22: 1
A23: 【221】住房保障支出 | B23: 3,600 | BQ23: =SUM(BR23:BS23) -> 3,600 | BS23: 3,600
A24: 【222】粮油物资储备支出 | B24: 219 | H24: =SUM(I24:R24) -> 164 | R24: =131+33 -> 164 | Y24: 0 | AG24: 55 | AH24: 33 | AI24: 22
A25: 【227】预备费 | B25: 1,600 | Y25: 0 | BQ25: 1,600 | BR25: 1,600
A26: 【229】其他支出

Sheet 2019本级基本支出经济科目
A1: 附表十六
A2: 西安市阎良区2019年一般公共预算（本级）基本支出表 | N2: 西安市阎良区2019年一般公共预算基本支出表 | AA2: 西安市阎良区2019年一般公共预算基本支出表
M3: 单位：万元 | Z3: 单位：万元 | AN3: 单位：万元
A4: 功能科目分类 | B4: 总计 | C4: 机关工资福利支出 | H4: 机关商品和服务支出 | N4: 机关商品和服务支出 | S4: 对事业单位经常性补助 | W4: 对企业补助 | AA4: 对个人和家庭的补助 | AG4: 预备费及预留 | AJ4: 其他支出
C5: 小计 | D5: 工资奖金津补贴 | E5: 社会保障缴费 | F5: 住房公积金 | G5: 其他工资福利支出 | H5: 小计 | I5: 办公经费 | J5: 会议费 | K5: 培训费 | L5: 专用材料购置费 | M5: 委托业务费 | N5: 公务接待费 | O5: 因公出国（境）费用 | P5: 公务用车运行维护费 | Q5: 维修（护）费 | R5: 其他商品和服务支出 | S5: 小计 | T5: 工资福利支出 | U5: 商品和服务支出 | V5: 其他对事业单位补助 | W5: 小计 | X5: 费用补贴 | Y5: 利息补贴 | Z5: 其他对企业补助 | AA5: 小计 | AB5: 社会福利和救助 | AC5: 助学金 | AD5: 个人农业生产补贴 | AE5: 离退休费 | AF5: 其他对个人和家庭补助 | AG5: 小计 | AH5: 预备费 | AI5: 预留 | AJ5: 小计 | AK5: 赠与 | AL5: 国家赔偿费用支出 | AM5: 对民间非营利组织和群众性自治组织补贴 | AN5: 其他支出
A6: 合计 | B6: =SUM(C6,H6,S6,W6,AA6,AG6,AJ6) -> 107,173 | C6: =SUM(C7:C25) -> 29,538 | D6: 13,289 | E6: 6,002 | G6: 10,247 | H6: 13,386 | I6: 3,174 | J6: 124 | K6: 213 | L6: 116 | M6: 3,347 | N6: 157 | P6: =SUM(P7:P25) -> 425 | Q6: 218 | R6: 5,613 | S6: 40,871 | T6: 36,459 | U6: 3,189 | V6: 1,223 | AA6: =SUM(AA7:AA25) -> 21,117 | AB6: 5,048 | AC6: 52 | AE6: =SUM(AE7:AE25) -> 12,615 | AF6: 3,402 | AG6: 300 | AH6: 300 | AI6: 1,000 | AJ6: 1,960 | AN6: =SUM(AN7:AN25) -> 1,960
A7: 【201】一般公共服务支出 | B7: 21,085 | C7: =SUM(D7:G7) -> 12,022 | D7: 6,109 | E7: 1,060 | G7: =784.788+450+2000-518+1060+1077 -> 4,854 | H7: =SUM(I7:R7) -> 4,729 | I7: 1,203 | J7: 82 | K7: 200 | M7: 425 | N7: 71 | P7: 114 | Q7: 131 | R7: =727.9079+100+1675 -> 2,503 | S7: =SUM(T7:V7) -> 2,457 | T7: 2,278 | U7: 179 | AA7: =SUM(AB7:AF7) -> 1,741 | AB7: 1,408 | AE7: 85 | AF7: 248 | AJ7: =SUM(AK7:AN7) -> 135 | AN7: 135
A8: 【204】公共安全支出 | B8: 9,721 | C8: 7,501 | D8: 4,107 | E8: 404 | G8: =1207.456+900+404+478 -> 2,989 | H8: 2,027 | I8: 1,232 | J8: 27 | M8: 5 | N8: 51 | P8: 222 | Q8: 34 | R8: 455 | S8: 185 | T8: 63 | U8: 50 | V8: 72 | AA8: 8 | AB8: 4 | AE8: 5
A9: 【205】教育支出 | B9: 31,347 | C9: 3,518 | D9: 177 | E9: 2,096 | G9: =18.84+350+2096-1220 -> 1,245 | H9: 197 | I9: 47 | K9: 6 | N9: 1 | Q9: 2 | R9: 140 | S9: 26,591 | T9: =20418.9172+5000 -> 25,419 | U9: 1,172 | AA9: 1,034 | AB9: 240 | AC9: 39 | AE9: 55 | AF9: 700 | AJ9: 7 | AN9: 7
A10: 【206】科学技术支出 | B10: 128 | H10: 128 | R10: 128
A11: 【207】文化体育与传媒支出 | B11: 785 | C11: =SUM(D11:G11) -> 425 | D11: 256 | E11: 15 | G11: =12.336+170-28 -> 154 | H11: 74 | I11: 41 | J11: 1 | N11: 2 | P11: 3 | Q11: 12 | R11: 15 | S11: 264 | T11: 223 | U11: 41 | AA11: =SUM(AB11:AF11) -> 21 | AB11: 1 | AE11: 20
A12: 【208】社会保障和就业支出 | B12: 20,429 | C12: 2,259 | D12: 352 | E12: =1601.04+30 -> 1,631 | G12: =75.452+200 -> 275 | H12: 300 | I12: 78 | J12: 1 | N12: 5 | P12: 3 | Q12: 2 | R12: 211 | S12: 623 | T12: 513 | U12: 110 | AA12: 17,246 | AB12: =2047.7918+923 -> 2,971 | AC12: 13 | AE12: =14248.212932-1839 -> 12,409 | AF12: 1,853 | AI12: 1,000
A13: 【210】医疗卫生计划生育支出 | B13: 8,535 | C13: 1,132 | D13: 518 | E13: 487 | G13: 127 | H13: 683 | I13: 222 | J13: 2 | K13: 4 | L13: 108 | M13: 113 | N13: 6 | P13: 29 | Q13: 3 | R13: 196 | S13: 5,907 | T13: 4,659 | U13: 849 | V13: 400 | AA13: 813 | AB13: 362 | AF13: =2080+15-1644 -> 451
A14: 【211】节能环保支出 | B14: 220 | C14: 40 | E14: 40 | H14: 160 | R14: 160 | S14: 20 | U14: 20
A15: 【212】城乡社区支出 | B15: 6,055 | C15: 905 | D15: 471 | E15: 134 | G15: =140.004+160 -> 300 | H15: 3,390 | I15: =363.901341-220 -> 144 | J15: 2 | M15: =2688.258-100 -> 2,588 | N15: 6 | P15: 43 | Q15: =101.135-90 -> 11 | R15: =755.756-160 -> 596 | S15: 1,564 | T15: 1,167 | U15: 330 | V15: 67 | AA15: =SUM(AB15:AF15) -> 197 | AB15: 5 | AE15: 42 | AF15: 150
A16: 【213】农林水支出 | B16: 3,321 | C16: 566 | D16: 416 | E16: 48 | G16: =51.588+50 -> 102 | H16: 552 | I16: 56 | J16: 7 | K16: 3 | L16: 8 | M16: 1 | N16: 4 | P16: 6 | Q16: 16 | R16: 452 | S16: 2,157 | T16: 1,272 | U16: 385 | V16: 500 | AA16: 46 | AB16: 46
A17: 【214】交通运输支出 | B17: 1,188 | C17: 195 | D17: 123 | E17: 20 | G17: =12.468+40 -> 52 | H17: 284 | I17: 5 | J17: 0 | N17: 1 | Q17: 1 | R17: =445-167 -> 278 | S17: 448 | T17: 430 | U17: 18 | AA17: 2 | AB17: 2 | AJ17: 258 | AN17: 258
A18: 【215】资源勘探信息等支出 | B18: 2,688 | C18: 548 | D18: 411 | E18: 15 | G18: =92.152+30 -> 122 | H18: 526 | I18: 70 | J18: 1 | M18: 210 | N18: 4 | P18: 3 | Q18: 1 | R18: =31.6+206 -> 238 | S18: 48 | T18: 37 | U18: 12 | AA18: 5 | AB18: 5 | AJ18: 1,560 | AN18: =1000+560 -> 1,560
A19: 【216】商业服务业等支出 | B19: 124 | C19: 52 | D19: 32 | E19: 10 | G19: 10 | H19: 70 | I19: 36 | J19: 0 | N19: 0 | Q19: 1 | R19: 33 | AA19: 2 | AB19: 2
A20: 【217】金融支出 | B20: 151 | C20: 42 | E20: 42 | H20: 15 | I20: 11 | J20: 0 | K20: 1 | P20: 3 | Q20: 1 | S20: =SUM(T20:V20) -> 94 | T20: 93 | U20: 1
A21: 【220】国土海洋气象等支出 | B21: 877 | C21: 332 | D21: 316 | G21: 16 | H21: 87 | I21: 29 | J21: 1 | M21: 5 | N21: 5 | Q21: 2 | R21: 44 | S21: 456 | T21: 271 | U21: 2 | V21: 184 | AA21: =SUM(AB21:AF21) -> 1 | AB21: 1
A22: 【221】住房保障支出
A23: 【222】粮油物资储备支出 | B23: 219 | H23: 164 | R23: =131+33 -> 164 | S23: 55 | T23: 33 | U23: 22
A24: 【227】预备费 | B24: 300 | AG24: =SUM(AH24:AI24) -> 300 | AH24: 300
A25: 【229】其他支出

Sheet 一般转移支付表
A1: 附表十七
A2: 西安市阎良区2019年一般公共预算税收返还和转移支付表
C3: 单位：万元
A4: 项 目 | B4: 金额
B5: 2019年 | C5: 2018年
A6: 一、返还性收入 | B6: 5,210 | C6: 5,210
A7: 其中：增值税和消费税税收返还收入 | B7: 1,187 | C7: 1,187
A8: 所得税基数返还收入 | B8: 1,172 | C8: 1,172
A9: 营改增返还基数 | B9: 2,590 | C9: 2,590
A10: 成品油价格和税费改革税收返还收入 | B10: 261 | C10: 261
A11: 二、一般转移支付收入 | B11: 13,790 | C11: 17,357
A12: 其中；（1）均衡性转移支付 | B12: 2,500 | C12: 3,465
A13: （2）县级基本财力保障机制奖补资金收入 | B13: 2,010 | C13: 3,419
A14: （3）企业事业单位划转补助收入 | B14: 3,180 | C14: 3,180
A15: （4）固定数额补助收入 | B15: 6,100 | C15: 6,100
A16: （5）成品油价格和税费改革转移支付补助收入 | C16: 105
A17: （6）基层公检法司转移支付收入
A18: （7）义务教育等转移支付收入
A19: （8）基本养老保险和低保等转移支付收入
A20: （9）新型农村合作医疗等转移支付收入
A21: （10）农村综合改革转移支付收入
A22: （11）专项补助 | C22: 726
A23: （12）结算补助收入 | C23: 362
A24: 三、专项转移转移支付收入 | B24: 0 | C24: 93,250
A25: 其中：（1）一般公共服务 | C25: 436
A26: （2）国防支出 | C26: 43
A27: （3）公共安全 | C27: 1,428
A28: （3）教育 | C28: 17,546
A29: （4）科学技术 | C29: 1,050
A30: （5）文化体育与传媒 | C30: 381
A31: （6）社会保障和就业 | C31: 15,851
A32: （7）医疗卫生与计划生育 | C32: 11,552
A33: （8）节能环保 | C33: 4,274
A34: （9）城乡社区 | C34: 10,298
A35: （10）农林水 | C35: 27,760
A36: （11）交通运输 | C36: 546
A37: （12）资源勘探信息等 | C37: 1,110
A38: （13）商业服务业等 | C38: 625
A39: （14）金融 | C39: 63
A40: （15）国土海洋气象等 | C40: 10
A41: （16）住房保障 | C41: 179
A42: （17）粮油物资储备
A43: （18）其他收入 | C43: 100
A44: 四、地方政府一般债券转贷收入 | B44: 0 | C44: 37,030
A45: 其中： 转贷新增一般债券收入 | C45: 4,000
A46: 转贷置换一般债券收入 | C46: 33,030
A47: 一般公共预算补助收入总计 | B47: 19,000 | C47: 152,847
A49: 备注：无对其他地区转移支付

Sheet 2019一般收支平衡
A1: 附表十八
A2: 西安市阎良区2019年一般公共预算收支平衡表
D3: 单位：万元
A4: 收 入 | C4: 支 出
A5: 项 目 | B5: 预算数 | C5: 项 目 | D5: 预算数
A6: 一般公共预算收入合计 | B6: 69,200 | C6: 一般公共预算支出合计 | D6: 121,820
A7: 转移性收入 | B7: =B8+B9+B10+B11+B16+B18 -> 67,000 | C7: 转移性支出 | D7: =D11+D15 -> 14,380
A8: 返还性收入 | B8: 5,210 | C8: 返还性支出
A9: 一般性转移支付收入 | B9: 9,790 | C9: 一般性转移支付
A10: 专项转移支付收入 | C10: 专项转移支付
A11: 下级上解收入 | C11: 上解上级支出 | D11: =D12+D13+D14 -> 5,860
A12: 体制上解收入 | C12: 体制上解支出
A13: 出口退税专项上解收入 | C13: 出口退税专项上解支出 | D13: 1,024
A14: 专项上解收入 | C14: 专项上解支出 | D14: =4836 -> 4,836
C15: 债务还本支出 | D15: 8,520
A16: 地方政府一般债券转贷收入 | B16: 4,000
A17: 动用上年净结余
A18: 调入资金 | B18: 48,000
A19: 从政府性基金调入 | B19: 48,000
A20: 一般公共预算收入总计 | B20: =B6+B7 -> 136,200 | C20: 一般公共预算支出总计 | D20: =D6+D7 -> 136,200

Sheet 2019基金收入
A1: 附表十九
A2: 西安市阎良区2019年政府性基金收入预算表
D3: 单位：万元
A4: 项 目 | B4: 2019年预算数 | C4: 2018年执行数 | D4: 与上年同比+－％
A6: 一、农网还贷资金收入
A7: 二、散装水泥专项资金收入
A8: 三、新型墙体材料专项基金收入
A9: 四、城市公用事业附加收入
A10: 五、国有土地收益基金收入 | C10: 10,907
A11: 六、农业土地开发资金收入
A12: 七、国有土地使用权出让收入 | B12: 51,000 | C12: 274
A13: 八、城市基础设施配套费收入 | B13: 6,000 | C13: 6,101 | D13: =(B13/C13-1) -> -1.7%
A14: 九、污水处理费收入 | C14: 131
A15: 十、其他政府性基金收入 | C15: 141
A16: 政府性基金预算收入合计 | B16: =SUM(B6:B15) -> 57,000 | C16: =SUM(C6:C15) -> 17,554 | D16: =(B16/C16-1) -> 224.7%
A17: 转移性收入 | C17: 44,535 | D17: *
A18: 政府性基金转移收入 | C18: 44,535 | D18: *
A19: 政府性基金补助收入 | C19: 44,535 | D19: *
A20: 政府性基金上解收入 | C20: * | D20: *
A21: 政府性基金预算收入总计 | B21: =B16+B17 -> 57,000 | C21: =C16+C17 -> 62,089 | D21: =B21/C21-1 -> -8.2%
A22: 本表预算科目按财政部发布的2019年预算科目列示。

Sheet 2019基金支出
A1: 附表二十
A2: 西安市阎良区2019年政府性基金支出预算表
D3: 单位：万元
A4: 项 目 | B4: 2019年预算数 | C4: 2018年执行数 | D4: 与上年同比+－％
A6: 一、社会保障和就业支出 | C6: 545
A7: 大中型水库移民后期扶持基金支出 | C7: 545
A8: 移民补助 | C8: 310
A9: 基础设施建设和经济发展 | C9: 235
A10: 其他大中型水库移民后期扶持基金支出
A11: 二、城乡社区支出 | B11: 9,000 | C11: =C19+C39+C50 -> 57,182 | D11: =B11/C11-1 -> -84%
A12: 政府住房基金及对应专项债务收入安排的支出
A13: 管理费用支出
A14: 廉租住房支出
A15: 公共租赁住房支出
A16: 公共租赁住房维护和管理支出
A17: 保障性住房租金补贴
A18: 其他政府住房基金支出
A19: 国有土地使用权出让收入及对应专项债务收入安排的支出 | B19: 3,000 | C19: 10,359 | D19: =B19/C19-1 -> -71%
A20: 征地和拆迁补偿支出 | B20: 3,000 | C20: 10,359 | D20: =B20/C20-1 -> -71%
A21: 土地开发支出
A22: 城市建设支出
A23: 农村基础设施建设支出
A24: 农村基础设施建设支出
A25: 补助被征地农民支出
A26: 土地出让业务支出
A27: 廉租住房支出
A28: 支付破产或改制企业职工安置费
A29: 棚户区改造支出
A30: 公共租赁住房支出
A31: 保障性住房租金补贴
A32: 其他国有土地使用权出让收入安排的支出
A33: 城市公用事业附加及对应专项债务收入安排的支出 | B33: =SUM(B34:B38) -> 0
A34: 城市公共设施
A35: 城市环境卫生
A36: 公有房屋
A37: 城市防洪
A38: 其他城市公用事业附加安排的支出
A39: 国有土地收益基金及对应专项债务收入安排的支出 | C39: =SUM(C40:C43) -> 33,841
A40: 征地和拆迁补偿支出 | C40: 30,548
A41: 土地开发支出 | C41: 274
A42: 其他国有土地收益基金支出
A43: 其他国有土地收益基金支出 | C43: 3,019
A44: 农业土地开发资金及对应专项债务收入安排的支出
A45: 新增建设用地土地有偿使用费安排的支出
A46: 耕地开发专项支出
A47: 基本农田建设和保护支出
A48: 土地整理支出
A49: 用于地震灾后恢复重建的支出
A50: 城市基础设施配套费安排的支出 | B50: 6,000 | C50: =SUM(C51:C55) -> 12,982 | D50: =(B50/C50-1) -> -53.8%
A51: 城市公共设施 | B51: 5,379 | C51: 3,242
A52: 城市环境卫生 | B52: 621 | C52: 776
A53: 公有房屋
A54: 城市防洪
A55: 其他城市基础设施配套费及对应专项债务收入安排的支出 | C55: 8,964
A56: 三、资源勘探信息等支出
A57: 散装水泥专项资金及对应专项债务收入安排的支出
A58: 建设专用设施
A59: 专用设备购置和维修
A60: 贷款贴息
A61: 技术研发与推广
A62: 宣传
A63: 其他散装水泥专项资金支出
A64: 新型墙体材料专项基金及对应专项债务收入安排的支出
A65: 技改贴息和补助
A66: 技术研发和推广
A67: 示范项目补贴
A68: 宣传和培训
A69: 其他新型墙体材料专项基金支出
A70: 四、其他支出 | C70: =C71+C80+C74 -> 4,362
A71: 彩票发行销售机构业务费安排的支出 | C71: =SUM(C72:C73) -> 135
A72: 福利彩票销售机构的业务费支出 | C72: 107
A73: 彩票市场调控资金支出 | C73: 28
A74: 彩票公益金及对应专项债务收入安排的支出 | C74: =SUM(C75:C79) -> 1,969
A75: 用于社会福利的彩票公益金支出 | C75: 1,114
A76: 用于体育事业的彩票公益金支出 | C76: 371
A77: 用于教育事业的彩票公益金支出 | C77: 13
A78: 用于残疾人事业的彩票公益金支出 | C78: 1
A79: 用于城乡医疗救助的彩票公益金支出 | C79: 470
A80: 其他政府性基金及对应专项债务收入安排的支出 | C80: 2,258
A81: 政府性基金预算支出合计 | B81: =B11+B56+B70+B6 -> 9,000 | C81: =C11+C56+C70+C6 -> 62,089 | D81: =(B81/C81-1) -> -85.5%
A82: 转移性支出 | C82: * | D82: *
A83: 政府性基金转移支付 | C83: * | D83: *
A84: 政府性基金上解支出 | C84: * | D84: *
A85: 调出资金 | B85: 48,000 | C85: * | D85: *
A86: 政府性基金预算调出资金 | C86: * | D86: *
A87: 政府性基金预算支出总计 | B87: =B81+B85 -> 57,000 | C87: 62,089 | D87: =B87/C87-1 -> -8.2%

Sheet 基金转移支付
A1: 附表二十一
A2: 西安市阎良区2019年政府性基金转移支付情况表
C3: 单位：万元
A4: 项 目 | B4: 金额
B5: 2019年 | C5: 2018年
A6: 专项转移转移支付收入 | B6: =SUM(B7:B22) -> 0 | C6: =SUM(C7:C22) -> 14,535
A7: 其中：（1）科学技术支出
A8: （2）文化体育与传媒支出
A9: （3）社会保障和就业支出 | C9: 545
A10: （4）节能环保支出
A11: （5）城乡社区支出 | C11: 9,628
A12: （6）农林水支出
A13: （7）交通运输支出
A14: （8）资源勘探信息等支出
A15: （9）商业服务业等支出
A16: （10）金融支出
A17: （11）其他支出 | C17: 4,362
A18: （12）债务付息支出
A19: （13）债务发行费用支出
A23: 备注：无对其他地区转移支付

Sheet 2019社保基金预算收入
A1: 附表二十二
A2: 西安市阎良区2019年社会保险基金收入预算表
D3: 单位：万元
A4: 项 目 | B4: 2019年预算数 | C4: 2018年执行数 | D4: 与上年同比+－％
A5: 一、社会保险基金收入 | B5: 14,709 | C5: 14,092 | D5: =B5/C5-1 -> 4.4%
A6: 1、新型农村合作医疗基金收入 | B6: 3,638 | C6: 3,214 | D6: =B6/C6-1 -> 13.2%
A7: 2、城乡居民基本养老保险基金收入 | B7: 926 | C7: 925 | D7: 0.1%
A8: 3、机关事业单位基本养老保险基金收入 | B8: 10,145 | C8: 9,953 | D8: 1.9%
A9: 二、利息收入 | B9: 144 | C9: 134 | D9: 7.5%
A10: 三、财政补贴收入 | B10: 22,855 | C10: 20,828 | D10: 9.7%
A11: 四、人员转移收入 | B11: 48 | C11: 22 | D11: 118.2%
A15: 社会保险基金预算收入合计 | B15: 37,756 | C15: 35,076 | D15: 7.6%
A16: 转移性收入 | B16: 18,965 | C16: 17,014 | D16: 11.5%
A17: 社会保险基金预算上年结余收入 | B17: 18,965 | C17: 17,014 | D17: 11.5%
A18: 社会保险基金预算收入总计 | B18: 56,335 | C18: =C15+C16 -> 52,090 | D18: 8.1%
A19: 本表预算科目按财政部发布的2019年预算科目列示。

Sheet 2019社保基金预算支出
A1: 附表二十三
A2: 西安市阎良区2019年社会保险基金支出预算表
D3: 单位：万元
A4: 项 目 | B4: 2019年预算数 | C4: 2018年执行数 | D4: 与上年同比+－％
A5: 一、新型农村合作医疗基金支出 | B5: 12,135 | C5: 11,957 | D5: =B5/C5-1 -> 1.5%
A6: 1、统筹基金支出 | B6: 11,225 | C6: 11,041 | D6: =B6/C6-1 -> 1.7%
A7: 2、大病保险支出 | B7: 910 | C7: 916 | D7: -0.7%
A9: 二、城乡居民基本养老保险基金支出 | B9: 6,797 | C9: 6,573 | D9: 3.4%
A10: 1、基本养老金支出 | B10: 6,472 | C10: 6,261 | D10: 3.4%
A11: 2、个人账户养老金支出 | B11: 260 | C11: 251 | D11: 3.6%
A12: 3、丧葬抚恤补助支出 | B12: 60 | C12: 56 | D12: 7.1%
A13: 4、人员转移支出 | B13: 5 | C13: 5
A14: 三、机关事业单位基本养老保险基金支出 | B14: 16,526 | C14: 14,595 | D14: 13.2%
A15: 其中：人员转移支出 | B15: 6 | C15: 6
A17: 社会保险基金预算支出合计 | B17: 35,458 | C17: 33,125 | D17: 7.0%
A18: 转移性支出 | B18: 20,877 | C18: 18,965 | D18: 10.1%
A19: 社会保险基金预算年终结余 | B19: 20,877 | C19: 18,965 | D19: 10.1%
A20: 社会保险基金预算支出总计 | B20: 56,335 | C20: =C17+C18 -> 52,090 | D20: 8.1%

Sheet 2019国有资本经营收入
A1: 附表二十四
A2: 西安市阎良区2019年国有资本经营预算收入预算表
A4: 收 入
A5: 项 目 | B5: 2019年预算数 | C5: 2018年预算数 | D5: 与上年同比+－％
A6: 一、利润收入
A7: 二、股权、股息收入 | C7: 150
A8: 三、产权转让收入
A9: 四、其他国有资本经营预算收入
A13: 国有资本经营预算收入合计 | C13: =SUM(C6:C12) -> 150
A14: 转移性收入 | C14: * | D14: *
A15: 国有资本经营预算转移支付收入 | C15: * | D15: *
A16: 上年结余收入 | C16: * | D16: *
A17: 国有资本经营预算收入总计 | C17: * | D17: *
A18: 本表预算科目按财政部发布的2019年预算科目列示。

Sheet 2019国有资本经营支出
A1: 附表二十五
A2: 西安市阎良区2019年国有资本经营预算支出预算表
D3: 单位：万元
A4: 项 目 | B4: 2019年 预算数 | C4: 2018年 预算数 | D4: 与上年同比+－％
A5: 一、国有资本经营预算支出
A6: 1、解决历史遗留问题及改革成本支出
A7: 2、国有企业资本金注入
A8: 3、其他国有资本经营预算支出
A9: 二、国有企业资本金注入
A10: 三、国有企业政策性补贴
A11: 四、其他国有资本经营预算支出
A12: 国有资本经营预算支出合计
A13: 转移性支出 | C13: 150 | D13: *
A14: 国有资本经营预算调出资金 | C14: * | D14: *
A15: 结转下年 | C15: * | D15: *
A16: 国有资本经营预算支出总计 | C16: 150 | D16: *

Sheet 2019国有资本经营预算转移支付
A1: 附表二十六
A2: 西安市阎良区2019年国有资本经营预算转移支付情况表
C3: 单位：万元
A4: 项目 | B4: 2019年 预算数 | C4: 备注
C5: 无转移支付预算

Sheet 2019一般债务
A1: 附表二十七
A2: 西安市阎良区2019年政府一般债务情况表
D3: 单位：万元
A4: 项目 | B4: 一般债务限额 | C4: 一般债务余额 | D4: 备注
A5: 政府一般债务情况 | B5: 118,400 | C5: 90,044

Sheet 2019专项债务
A1: 附表二十八
A2: 西安市阎良区2019年政府专项债务情况表
D3: 单位：万元
A4: 项目 | B4: 专项债务限额 | C4: 专项债务余额 | D4: 备注
A5: 政府专项债务情况 | C5: 30,000

Sheet 2019三公经费
A1: 附表二十九
A2: 西安市阎良区2019年三公经费预算表
G3: 单位：万元
A4: 项 目 | B4: 合计 | C4: 因公出国（境）费 | D4: 公务接待费 | E4: 公务用车购置及运行维护费
E5: 合计 | F5: 公务用车购置费 | G5: 公务用车运行维护费
A6: 2018年执行数 | B6: =SUM(C6:E6) -> 582.0 | D6: 51.0 | E6: =SUM(F6:G6) -> 531.0 | G6: 531.0
A7: 2019年预算数 | B7: =SUM(C7:E7) -> 668.0 | D7: 191.0 | E7: =SUM(F7:G7) -> 477.0 | G7: 477.0
A8: 2019年预算数较2018年执行数增加 | B8: =B7-B6 -> 86.0 | D8: 140.0 | E8: -54.0 | G8: =G7-G6 -> -54.0
A9: 2019年预算数较2018年执行数增长% | B9: =B8/B7 -> 13% | D9: 73% | E9: -11% | G9: -11%
